fUST/lending_fUST_20250102
["ID","MTS","AMOUNT","RATE_DAILY","PERIOD"]
[347429504,1735794657753,-511.5,0.00021089,3]
[347429505,1735794657762,-500.0,0.00021089,3]
[347429506,1735794657771,-500.0,0.00021089,3]
[347429507,1735794657781,-769.73,0.00021089,3]
[347429508,1735794657790,-527.61220669,0.00021089,3]
[347429509,1735794657799,-151.0,0.00021089,2]
[347429510,1735794657809,-500.0,0.00021089,3]
[347429511,1735794657819,-500.0,0.00021089,3]
[347429512,1735794657828,-151.0,0.00021089,2]
[347429513,1735794657838,-500.0,0.00021089,3]
[347429514,1735794657847,-500.0,0.00021091,3]
[347429515,1735794657856,-500.0,0.00021091,3]
[347429516,1735794657866,-797.53,0.00021091,3]
[347429517,1735794657875,-537.37511121,0.00021091,3]
[347429518,1735794657885,-784.26,0.00021091,3]
[347429519,1735794657893,-500.0,0.00021091,3]
[347429520,1735794657903,-500.0,0.00021091,3]
[347429521,1735794657912,-235.94055217,0.00021091,3]
[347429522,1735794657921,-500.0,0.00021091,3]
[347429523,1735794657930,-500.0,0.00021091,3]
[347429524,1735794657940,-500.0,0.00021091,3]
[347429525,1735794657949,-500.0,0.00021091,3]
[347429526,1735794657958,-848.74,0.00021091,3]
[347429527,1735794657968,-500.0,0.00021091,3]
[347429528,1735794657977,-500.06,0.00021091,3]
[347429529,1735794657988,-749.821253,0.00021091,2]
[347429530,1735794657997,-749.821253,0.00021091,2]
[347429531,1735794658006,-500.0,0.00021091,3]
[347429532,1735794658015,-511.44913008,0.00021091,3]
[347429533,1735794658025,-152.212168,0.00021091,2]
[347429534,1735794658034,-560.2,0.00021091,3]
[347429535,1735794658043,-165.495263,0.00021091,2]
[347429536,1735794658052,-165.495263,0.00021091,2]
[347429537,1735794658061,-2528.29,0.00021091,3]
[347429538,1735794658070,-1809.70569111,0.00021091,7]
[347429539,1735794658080,-500.0,0.00021092,3]
[347429540,1735794658089,-2256.4,0.00021092,3]
[347429541,1735794658098,-500.0,0.00021092,3]
[347429542,1735794658107,-588.09,0.00021092,3]
[347429543,1735794658117,-500.0,0.00021092,3]
[347429544,1735794658126,-500.0,0.00021092,3]
[347429545,1735794658135,-500.0,0.00021092,3]
[347429546,1735794658144,-500.0,0.00021092,3]
[347429547,1735794658153,-500.0,0.00021092,3]
[347429548,1735794658163,-500.0,0.00021093,3]
[347429549,1735794658172,-500.0,0.00021093,3]
[347429550,1735794658181,-500.0,0.00021093,3]
[347429551,1735794658190,-500.0,0.00021094,3]
[347429552,1735794658199,-2500.0,0.00021095,2]
[347429553,1735794658208,-2150.6506994,0.00021095,2]
[347429554,1735794658218,-4352.55038214,0.00021095,14]
[347429555,1735794658228,-500.0,0.00021095,3]
[347429556,1735794658237,-2730.05609767,0.00021095,14]
[347429557,1735794658247,-1881.75,0.00021095,3]
[347429558,1735794658256,-500.0,0.00021095,3]
[347429559,1735794658265,-1108.5,0.00021095,3]
[347429560,1735794658275,-500.0,0.00021095,3]
[347429561,1735794658284,-1159.6,0.00021095,3]
[347429562,1735794658293,-488.013352,0.00021096,2]
[347429563,1735794658305,-151.0,0.000211,3]
[347429564,1735794658315,-458.3385471,0.00021163,2]
[347429565,1735794658323,-1809.70569111,0.00021202,7]
[347429566,1735794658405,-162.10846113,0.00021282,7]
[347429567,1735794658415,-488.013352,0.00021288,2]
[347429568,1735794658425,-151.0,0.000213,3]
[347429569,1735794658434,-1809.70569111,0.00021312,7]
[347429570,1735794658444,-500.0,0.00021361,3]
[347429571,1735794658453,-500.0,0.00021361,3]
[347429572,1735794658463,-3368.58,0.00021361,3]
[347429573,1735794658472,-534.12,0.00021361,3]
[347429574,1735794658484,-1775.41,0.00021361,3]
[347429575,1735794658493,-1212.23,0.00021361,3]
[347429576,1735794658502,-561.38,0.00021361,3]
[347429577,1735794658511,-500.0,0.00021361,3]
[347429578,1735794658521,-500.0,0.00021361,3]
[347429579,1735794658531,-571.1,0.00021362,3]
[347429580,1735794658540,-500.0,0.00021362,3]
[347429581,1735794658549,-500.0,0.00021363,3]
[347429582,1735794658559,-500.0,0.00021363,3]
[347429583,1735794658569,-500.0,0.00021363,3]
[347429584,1735794658579,-500.0,0.00021363,3]
[347429585,1735794658589,-738.55,0.00021363,3]
[347429586,1735794658599,-707.22,0.00021363,3]
[347429587,1735794658609,-500.0,0.00021363,3]
[347429588,1735794658618,-509.53,0.00021363,3]
[347429589,1735794658627,-500.0,0.00021363,3]
[347429590,1735794658638,-525.49887405,0.00021363,3]
[347429591,1735794658648,-582.11,0.00021363,3]
[347429592,1735794658658,-500.0,0.00021363,3]
[347429593,1735794658667,-500.0,0.00021363,3]
[347429594,1735794658677,-524.61,0.00021363,3]
[347429595,1735794658686,-610.16368592,0.00021363,3]
[347429596,1735794658695,-500.0,0.00021363,3]
[347429597,1735794658704,-1829.75,0.00021363,3]
[347429598,1735794658713,-779.37,0.00021363,3]
[347429599,1735794658722,-577.85,0.00021363,3]
[347429600,1735794658731,-23779.58,0.00021363,3]
[347429601,1735794658740,-814.17,0.00021363,3]
[347429602,1735794658749,-500.0,0.00021363,3]
[347429603,1735794658758,-1149.49,0.00021363,3]
[347429604,1735794658767,-505.23861557,0.00021363,3]
[347429605,1735794658777,-500.0,0.00021363,3]
[347429606,1735794658786,-1427.8,0.00021363,3]
[347429607,1735794658796,-500.0,0.00021363,3]
[347429608,1735794658805,-500.0,0.00021363,3]
[347429609,1735794658814,-500.0,0.00021363,3]
[347429610,1735794658823,-1331.34,0.00021363,3]
[347429611,1735794658833,-604.16,0.00021363,3]
[347429612,1735794658842,-860.85,0.00021363,3]
[347429613,1735794658851,-1449.18,0.00021363,3]
[347429614,1735794658860,-500.0,0.00021363,3]
[347429615,1735794658869,-201.17480925,0.00021363,3]
[347429616,1735794658878,-500.0,0.00021363,3]
[347429617,1735794658887,-1189.92,0.00021363,2]
[347429618,1735794658897,-847.21,0.00021363,3]
[347429619,1735794658906,-517.7,0.00021363,3]
[347429620,1735794658915,-500.0,0.00021363,3]
[347429621,1735794658924,-1081.19,0.00021363,3]
[347429622,1735794658933,-511.5,0.00021363,3]
[347429623,1735794658942,-468.03186624,0.00021363,3]
[347429624,1735794658951,-500.0,0.00021363,3]
[347429625,1735794658961,-769.73,0.00021363,3]
[347429626,1735794658970,-500.0,0.00021363,3]
[347429627,1735794658980,-500.0,0.00021363,3]
[347429628,1735794658989,-500.0,0.00021363,3]
[347429629,1735794658998,-500.0,0.00021365,3]
[347429630,1735794659008,-500.0,0.00021365,3]
[347429631,1735794659017,-797.53,0.00021365,3]
[347429632,1735794659026,-784.26,0.00021365,3]
[347429633,1735794659035,-500.0,0.00021365,3]
[347429634,1735794659045,-500.0,0.00021365,3]
[347429635,1735794659054,-639.18799175,0.00021365,3]
[347429636,1735794659063,-500.0,0.00021365,3]
[347429637,1735794659072,-500.0,0.00021365,3]
[347429638,1735794659081,-500.0,0.00021365,3]
[347429639,1735794659091,-848.74,0.00021365,3]
[347429640,1735794659100,-296.52681724,0.00021365,3]
[347429641,1735794659109,-500.06,0.00021365,3]
[347429642,1735794659118,-500.0,0.00021365,3]
[347429643,1735794659127,-560.2,0.00021365,3]
[347429644,1735794659136,-1177.416674,0.00021365,2]
[347429645,1735794659145,-1177.416674,0.00021365,2]
[347429646,1735794659155,-2528.29,0.00021365,3]
[347429647,1735794659164,-500.0,0.00021366,3]
[347429648,1735794659173,-2256.4,0.00021366,3]
[347429649,1735794659182,-500.0,0.00021366,3]
[347429650,1735794659191,-588.09,0.00021366,3]
[347429651,1735794659201,-500.0,0.00021366,3]
[347429652,1735794659210,-500.0,0.00021366,3]
[347429653,1735794659221,-500.0,0.00021366,3]
[347429654,1735794659231,-500.0,0.00021366,3]
[347429655,1735794659240,-500.0,0.00021366,3]
[347429656,1735794659249,-500.0,0.00021367,3]
[347429657,1735794659259,-500.0,0.00021367,3]
[347429658,1735794659268,-500.0,0.00021367,3]
[347429659,1735794659277,-500.0,0.00021369,3]
[347429660,1735794659287,-1881.75,0.00021369,3]
[347429661,1735794659296,-500.0,0.00021369,3]
[347429662,1735794659309,-1108.5,0.00021369,3]
[347429663,1735794659318,-500.0,0.00021369,3]
[347429664,1735794659328,-1159.6,0.00021369,3]
[347429665,1735794659337,-458.3385471,0.00021374,2]
[347429666,1735794659347,-151.0,0.000214,3]
[347429667,1735794659356,-1809.70569111,0.00021422,7]
[347429668,1735794659365,-160.0,0.00021443,3]
[347429669,1735794659375,-645.58866899,0.00021445,3]
[347429670,1735794659384,-488.013352,0.00021479,2]
[347429671,1735794659395,-162.10846113,0.00021483,7]
[347429672,1735794659404,-1500.0,0.00021522,2]
[347429673,1735794659413,-1809.70569111,0.00021533,7]
[347429674,1735794659423,-458.3385471,0.00021584,2]
[347429675,1735794659432,-214.4778337,0.00021589,2]
[347429676,1735794659441,-154.5518694,0.00021589,2]
[347429677,1735794659450,-305.488043,0.00021589,2]
[347429678,1735794659459,-214.4778337,0.00021589,2]
[347429679,1735794659539,-153.6137553,0.00021589,2]
[347429680,1735794659548,-214.4778337,0.00021589,2]
[347429681,1735794659558,-153.6137553,0.00021589,2]
[347429682,1735794659567,-153.6137553,0.00021589,2]
[347429683,1735794659577,-179.8948247,0.00021589,2]
[347429684,1735794659586,-153.6137553,0.00021589,2]
[347429685,1735794659596,-5940.0,0.000216,4]
[347429686,1735794659605,-164.305224,0.000216,2]
[347429687,1735794659614,-164.305224,0.000216,2]
[347429688,1735794659624,-151.0,0.000216,2]
[347429689,1735794659633,-195.41717,0.000216,2]
[347429690,1735794659642,-195.41717,0.000216,2]
[347429691,1735794659651,-150.0,0.00021608,2]
[347429692,1735794659661,-165.39,0.00021614,2]
[347429693,1735794659670,-500.0,0.00021635,3]
[347429694,1735794659680,-500.0,0.00021635,3]
[347429695,1735794659690,-3368.58,0.00021635,3]
[347429696,1735794659699,-534.12,0.00021635,3]
[347429697,1735794659708,-1775.41,0.00021635,3]
[347429698,1735794659719,-1212.23,0.00021635,3]
[347429699,1735794659728,-561.38,0.00021635,3]
[347429700,1735794659738,-317.23307352,0.00021635,3]
[347429701,1735794659747,-500.0,0.00021635,3]
[347429702,1735794659756,-500.0,0.00021636,3]
[347429703,1735794659765,-500.0,0.00021636,3]
[347429704,1735794659774,-500.0,0.00021636,3]
[347429705,1735794659784,-500.0,0.00021636,3]
[347429706,1735794659793,-738.55,0.00021636,3]
[347429707,1735794659802,-707.22,0.00021636,3]
[347429708,1735794659812,-500.0,0.00021636,3]
[347429709,1735794659821,-509.53,0.00021636,3]
[347429710,1735794659830,-500.0,0.00021636,3]
[347429711,1735794659839,-582.11,0.00021636,3]
[347429712,1735794659849,-500.0,0.00021636,3]
[347429713,1735794659857,-500.0,0.00021636,3]
[347429714,1735794659867,-1829.75,0.00021636,3]
[347429715,1735794659876,-779.37,0.00021636,3]
[347429716,1735794659885,-577.85,0.00021636,3]
[347429717,1735794659894,-500.0,0.00021636,3]
[347429718,1735794659904,-1149.49,0.00021636,3]
[347429719,1735794659913,-1427.8,0.00021636,3]
[347429720,1735794659922,-506.50951916,0.00021636,3]
[347429721,1735794659931,-500.0,0.00021636,3]
[347429722,1735794659940,-500.0,0.00021636,3]
[347429723,1735794659949,-1331.34,0.00021636,3]
[347429724,1735794659959,-604.16,0.00021636,3]
[347429725,1735794659969,-860.85,0.00021636,3]
[347429726,1735794659978,-1449.18,0.00021636,3]
[347429727,1735794659988,-500.0,0.00021636,3]
[347429728,1735794659997,-500.0,0.00021636,3]
[347429729,1735794660006,-1189.92,0.00021636,2]
[347429730,1735794660016,-847.21,0.00021636,3]
[347429731,1735794660025,-517.7,0.00021636,3]
[347429732,1735794660035,-309.02012044,0.00021636,3]
[347429733,1735794660045,-1081.19,0.00021636,3]
[347429734,1735794660054,-511.5,0.00021636,3]
[347429735,1735794660063,-500.0,0.00021636,3]
[347429736,1735794660073,-769.73,0.00021636,3]
[347429737,1735794660083,-500.0,0.00021636,3]
[347429738,1735794660093,-571.1,0.00021636,3]
[347429739,1735794660102,-500.0,0.00021636,3]
[347429740,1735794660112,-504.46489257,0.00021636,3]
[347429741,1735794660121,-524.61,0.00021637,3]
[347429742,1735794660130,-23779.58,0.00021637,3]
[347429743,1735794660140,-814.17,0.00021637,3]
[347429744,1735794660149,-500.0,0.00021639,3]
[347429745,1735794660159,-500.0,0.00021639,3]
[347429746,1735794660168,-797.53,0.00021639,3]
[347429747,1735794660177,-151.416023,0.00021639,2]
[347429748,1735794660187,-784.26,0.00021639,3]
[347429749,1735794660196,-500.0,0.00021639,3]
[347429750,1735794660205,-500.0,0.00021639,3]
[347429751,1735794660216,-1134.081463,0.00021639,2]
[347429752,1735794660225,-1134.081463,0.00021639,2]
[347429753,1735794660235,-492.60260998,0.00021639,3]
[347429754,1735794660244,-500.0,0.00021639,3]
[347429755,1735794660254,-500.0,0.00021639,3]
[347429756,1735794660263,-848.74,0.00021639,3]
[347429757,1735794660273,-500.06,0.00021639,3]
[347429758,1735794660282,-500.0,0.00021639,3]
[347429759,1735794660293,-560.2,0.00021639,3]
[347429760,1735794660306,-1650.444701,0.00021639,2]
[347429761,1735794660316,-1650.444701,0.00021639,2]
[347429762,1735794660326,-2528.29,0.00021639,3]
[347429763,1735794660336,-500.0,0.0002164,3]
[347429764,1735794660345,-2256.4,0.0002164,3]
[347429765,1735794660355,-500.0,0.0002164,3]
[347429766,1735794660363,-588.09,0.0002164,3]
[347429767,1735794660373,-398.440154,0.0002164,2]
[347429768,1735794660385,-500.0,0.0002164,3]
[347429769,1735794660395,-398.440154,0.0002164,2]
[347429770,1735794660405,-500.0,0.0002164,3]
[347429771,1735794660414,-451.084782,0.0002164,2]
[347429772,1735794660423,-451.084782,0.0002164,2]
[347429773,1735794660434,-151.0,0.0002164,2]
[347429774,1735794660443,-180.293254,0.0002164,2]
[347429775,1735794660453,-180.293254,0.0002164,2]
[347429776,1735794660462,-151.0,0.0002164,2]
[347429777,1735794660472,-500.0,0.0002164,3]
[347429778,1735794660481,-500.0,0.0002164,3]
[347429779,1735794660491,-510.34891307,0.00021641,3]
[347429780,1735794660500,-500.0,0.00021641,3]
[347429781,1735794660509,-500.0,0.00021641,3]
[347429782,1735794660584,-151.0,0.00021641,2]
[347429783,1735794660594,-500.0,0.00021643,3]
[347429784,1735794660604,-499.0,0.00021643,4]
[347429785,1735794660613,-1881.75,0.00021643,3]
[347429786,1735794660622,-500.0,0.00021643,3]
[347429787,1735794660631,-1108.5,0.00021643,3]
[347429788,1735794660642,-500.0,0.00021643,3]
[347429789,1735794660653,-1159.6,0.00021643,3]
[347429790,1735794660663,-1809.70569111,0.00021643,7]
[347429791,1735794660672,-151.0,0.0002166,6]
[347429792,1735794660681,-488.013352,0.00021671,2]
[347429793,1735794660691,-162.10846113,0.00021683,7]
[347429794,1735794660700,-1809.70569111,0.00021754,7]
[347429795,1735794660709,-458.3385471,0.00021795,2]
[347429796,1735794660719,-151.0,0.00021826,2]
[347429797,1735794660727,-151.0,0.00021826,2]
[347429798,1735794660737,-488.013352,0.00021863,2]
[347429799,1735794660746,-1809.70569111,0.00021864,7]
[347429800,1735794660755,-162.10846113,0.00021884,7]
[347429801,1735794660764,-4011.72,0.000219,2]
[347429802,1735794660773,-151.0,0.000219,2]
[347429803,1735794660783,-151.0,0.000219,2]
[347429804,1735794660792,-500.0,0.00021909,3]
[347429805,1735794660801,-500.0,0.00021909,3]
[347429806,1735794660811,-3368.58,0.00021909,3]
[347429807,1735794660820,-534.12,0.00021909,3]
[347429808,1735794660829,-1775.41,0.00021909,3]
[347429809,1735794660839,-1212.23,0.00021909,3]
[347429810,1735794660848,-561.38,0.00021909,3]
[347429811,1735794660857,-500.0,0.00021909,3]
[347429812,1735794660866,-500.0,0.0002191,3]
[347429813,1735794660875,-500.0,0.0002191,3]
[347429814,1735794660884,-500.0,0.0002191,3]
[347429815,1735794660893,-509.97311507,0.0002191,3]
[347429816,1735794660902,-738.55,0.0002191,3]
[347429817,1735794660911,-707.22,0.0002191,3]
[347429818,1735794660920,-500.0,0.0002191,3]
[347429819,1735794660929,-509.53,0.0002191,3]
[347429820,1735794660938,-500.0,0.0002191,3]
[347429821,1735794660948,-582.11,0.0002191,3]
[347429822,1735794660957,-500.0,0.0002191,3]
[347429823,1735794660967,-500.0,0.0002191,3]
[347429824,1735794660976,-1829.75,0.0002191,3]
[347429825,1735794660986,-779.37,0.0002191,3]
[347429826,1735794660995,-577.85,0.0002191,3]
[347429827,1735794661004,-573.53320866,0.0002191,3]
[347429828,1735794661014,-1149.49,0.0002191,3]
[347429829,1735794661023,-1427.8,0.0002191,3]
[347429830,1735794661032,-500.0,0.0002191,3]
[347429831,1735794661041,-500.0,0.0002191,3]
[347429832,1735794661050,-1331.34,0.0002191,3]
[347429833,1735794661060,-604.16,0.0002191,3]
[347429834,1735794661069,-860.85,0.0002191,3]
[347429835,1735794661078,-1449.18,0.0002191,3]
[347429836,1735794661087,-500.0,0.0002191,3]
[347429837,1735794661096,-500.0,0.0002191,3]
[347429838,1735794661106,-1189.92,0.0002191,2]
[347429839,1735794661115,-847.21,0.0002191,3]
[347429840,1735794661125,-517.7,0.0002191,3]
[347429841,1735794661134,-1081.19,0.0002191,3]
[347429842,1735794661143,-511.5,0.0002191,3]
[347429843,1735794661152,-769.73,0.0002191,3]
[347429844,1735794661162,-211.74,0.0002191,3]
[347429845,1735794661171,-571.1,0.0002191,3]
[347429846,1735794661180,-500.0,0.0002191,3]
[347429847,1735794661190,-749.821253,0.00021911,2]
[347429848,1735794661200,-749.821253,0.00021911,2]
[347429849,1735794661209,-524.61,0.00021911,3]
[347429850,1735794661219,-23779.58,0.00021911,3]
[347429851,1735794661228,-814.17,0.00021911,3]
[347429852,1735794661237,-165.495263,0.00021911,2]
[347429853,1735794661247,-165.495263,0.00021911,2]
[347429854,1735794661259,-500.0,0.00021913,3]
[347429855,1735794661269,-500.0,0.00021913,3]
[347429856,1735794661279,-797.53,0.00021913,3]
[347429857,1735794661293,-784.26,0.00021913,3]
[347429858,1735794661304,-500.0,0.00021913,3]
[347429859,1735794661322,-500.0,0.00021913,3]
[347429860,1735794661337,-500.0,0.00021913,3]
[347429861,1735794661347,-500.0,0.00021913,3]
[347429862,1735794661356,-848.74,0.00021913,3]
[347429863,1735794661367,-500.06,0.00021913,3]
[347429864,1735794661376,-500.0,0.00021913,3]
[347429865,1735794661386,-560.2,0.00021913,3]
[347429866,1735794661396,-2528.29,0.00021913,3]
[347429867,1735794661406,-234.47118085,0.00021914,3]
[347429868,1735794661415,-2256.4,0.00021914,3]
[347429869,1735794661424,-500.0,0.00021914,3]
[347429870,1735794661433,-588.09,0.00021914,3]
[347429871,1735794661443,-500.0,0.00021914,3]
[347429872,1735794661452,-151.0,0.00021914,2]
[347429873,1735794661462,-151.0,0.00021914,2]
[347429874,1735794661474,-500.0,0.00021914,3]
[347429875,1735794661483,-299.455776,0.00021914,2]
[347429876,1735794661493,-299.455776,0.00021914,2]
[347429877,1735794661567,-500.0,0.00021914,3]
[347429878,1735794661577,-500.0,0.00021914,3]
[347429879,1735794661587,-500.0,0.00021915,3]
[347429880,1735794661596,-500.0,0.00021915,3]
[347429881,1735794661606,-500.0,0.00021917,3]
[347429882,1735794661615,-500.0,0.00021917,3]
[347429883,1735794661624,-302.63296168,0.00021917,3]
[347429884,1735794661633,-411.3182887,0.00021917,3]
[347429885,1735794661645,-1000.0,0.00021917,5]
[347429886,1735794661654,-1000.0,0.00021917,5]
[347429887,1735794661663,-1000.0,0.00021917,5]
[347429888,1735794661672,-1000.0,0.00021917,5]
[347429889,1735794661682,-897.35473751,0.00021917,5]
[347429890,1735794661691,-1000.0,0.00021917,2]
[347429891,1735794661701,-500.0,0.00021917,3]
[347429892,1735794661710,-1881.75,0.00021917,3]
[347429893,1735794661720,-500.0,0.00021917,3]
[347429894,1735794661730,-1108.5,0.00021917,3]
[347429895,1735794661739,-500.0,0.00021917,3]
[347429896,1735794661749,-1159.6,0.00021917,3]
[347429897,1735794661758,-1282.9626535,0.00021918,7]
[347429898,1735794661767,-1809.70569111,0.00021975,7]
[347429899,1735794661777,-151.0,0.00021975,6]
[347429900,1735794661786,-150.0,0.00022,2]
[347429901,1735794661795,-552.0,0.00022,2]
[347429902,1735794661804,-458.3385471,0.00022005,2]
[347429903,1735794661814,-1000.0,0.00022053,2]
[347429904,1735794661824,-488.013352,0.00022055,2]
[347429905,1735794661834,-649.681,0.0002206,2]
[347429906,1735794661843,-1000.0,0.0002207,2]
[347429907,1735794661852,-3000.79926026,0.00022084,2]
[347429908,1735794661862,-1809.7,0.00022085,7]
[347429909,1735794661871,-162.1,0.00022085,7]
[347429910,1735794661881,-160.0,0.00022105,4]
[347429911,1735794661890,-250.0,0.00022156,2]
[347429912,1735794661900,-500.0,0.00022183,3]
[347429913,1735794661909,-500.0,0.00022183,3]
[347429914,1735794661919,-3368.58,0.00022183,3]
[347429915,1735794661928,-534.12,0.00022183,3]
[347429916,1735794661938,-1775.41,0.00022183,3]
[347429917,1735794661948,-1212.23,0.00022183,3]
[347429918,1735794661957,-561.38,0.00022183,3]
[347429919,1735794661967,-500.0,0.00022183,3]
[347429920,1735794661975,-500.0,0.00022184,3]
[347429921,1735794661985,-500.0,0.00022184,3]
[347429922,1735794662002,-500.0,0.00022184,3]
[347429923,1735794662020,-738.55,0.00022184,3]
[347429924,1735794662038,-707.22,0.00022184,3]
[347429925,1735794662059,-500.0,0.00022184,3]
[347429926,1735794662078,-509.53,0.00022184,3]
[347429927,1735794662097,-548.96040106,0.00022184,3]
[347429928,1735794662115,-582.11,0.00022184,3]
[347429929,1735794662129,-500.0,0.00022184,3]
[347429930,1735794662148,-500.0,0.00022184,3]
[347429931,1735794662168,-1829.75,0.00022184,3]
[347429932,1735794662186,-779.37,0.00022184,3]
[347429933,1735794662200,-577.85,0.00022184,3]
[347429934,1735794662219,-1149.49,0.00022184,3]
[347429935,1735794662233,-1427.8,0.00022184,3]
[347429936,1735794662248,-500.0,0.00022184,3]
[347429937,1735794662262,-500.0,0.00022184,3]
[347429938,1735794662278,-1331.34,0.00022184,3]
[347429939,1735794662294,-604.16,0.00022184,3]
[347429940,1735794662311,-860.85,0.00022184,3]
[347429941,1735794662326,-1449.18,0.00022184,3]
[347429942,1735794662342,-500.0,0.00022184,3]
[347429943,1735794662358,-500.0,0.00022184,3]
[347429944,1735794662373,-1189.92,0.00022184,2]
[347429945,1735794662392,-847.21,0.00022184,3]
[347429946,1735794662407,-517.7,0.00022184,3]
[347429947,1735794662423,-1081.19,0.00022184,3]
[347429948,1735794662439,-511.5,0.00022184,3]
[347429949,1735794662454,-769.73,0.00022184,3]
[347429950,1735794662471,-571.1,0.00022184,3]
[347429951,1735794662486,-580.96358821,0.00022184,3]
[347429952,1735794662502,-524.61,0.00022185,3]
[347429953,1735794662518,-23779.58,0.00022185,3]
[347429954,1735794662533,-814.17,0.00022185,3]
[347429955,1735794662548,-1177.416674,0.00022185,7]
[347429956,1735794662564,-1177.416674,0.00022185,7]
[347429957,1735794662579,-500.0,0.00022187,3]
[347429958,1735794662595,-500.0,0.00022187,3]
[347429959,1735794662610,-797.53,0.00022187,3]
[347429960,1735794662625,-784.26,0.00022187,3]
[347429961,1735794662641,-500.0,0.00022187,3]
[347429962,1735794662656,-500.0,0.00022187,3]
[347429963,1735794662671,-500.0,0.00022187,3]
[347429964,1735794662687,-500.0,0.00022187,3]
[347429965,1735794662796,-848.74,0.00022187,3]
[347429966,1735794662806,-500.06,0.00022187,3]
[347429967,1735794662815,-500.0,0.00022187,3]
[347429968,1735794662825,-560.2,0.00022187,3]
[347429969,1735794662834,-2528.29,0.00022187,3]
[347429970,1735794662844,-2256.4,0.00022188,3]
[347429971,1735794662853,-500.0,0.00022188,3]
[347429972,1735794662863,-588.09,0.00022188,3]
[347429973,1735794662872,-500.0,0.00022188,3]
[347429974,1735794662882,-500.0,0.00022188,3]
[347429975,1735794662892,-164.305224,0.00022188,7]
[347429976,1735794662901,-164.305224,0.00022188,7]
[347429977,1735794662911,-500.0,0.00022188,3]
[347429978,1735794662920,-151.0,0.00022188,7]
[347429979,1735794662929,-195.41717,0.00022188,7]
[347429980,1735794662938,-195.41717,0.00022188,7]
[347429981,1735794662948,-500.0,0.00022188,3]
[347429982,1735794662957,-590.277295,0.00022189,7]
[347429983,1735794662969,-264.465907,0.00022189,7]
[347429984,1735794662978,-264.465907,0.00022189,7]
[347429985,1735794662988,-500.0,0.00022189,3]
[347429986,1735794662997,-500.0,0.00022189,3]
[347429987,1735794663006,-1650.444701,0.00022189,7]
[347429988,1735794663016,-1650.444701,0.00022189,7]
[347429989,1735794663025,-500.0,0.00022191,3]
[347429990,1735794663035,-1881.75,0.00022191,3]
[347429991,1735794663045,-500.0,0.00022191,3]
[347429992,1735794663054,-1108.5,0.00022191,3]
[347429993,1735794663063,-500.0,0.00022191,3]
[347429994,1735794663072,-1159.6,0.00022191,3]
[347429995,1735794663081,-552.0,0.00022192,2]
[347429996,1735794663091,-1000.0,0.00022195,2]
[347429997,1735794663100,-9406.34,0.000222,14]
[347429998,1735794663109,-11604.11,0.000222,2]
[347429999,1735794663119,-1134.081463,0.000222,7]
[347430000,1735794663129,-1134.081463,0.000222,7]
[347430001,1735794663138,-3000.79926017,0.00022204,2]
[347430002,1735794663148,-458.3385471,0.00022216,2]
[347430003,1735794663158,-151.0,0.00022289,7]